{"text_format":"1","workbook":"xlsx","n_sheets":2,"sheets":["Personnes","RDV"],"not_rendered":{"charts":0,"images":0,"macros":1,"external_links":0,"defined_names":1,"comments":0,"pivot_tables":0},"unopened":[],"bounds":{"document_bytes":16777216,"sheet_cells":100000,"rows_first":2000,"rows_last":500,"rows_between":2000,"halvings":0,"cell_chars":16384,"cell_head_chars":4096},"cells_cut":0,"cells_raw":0,"read":"whole","date_system":"1900"}

{"sheet":"Personnes","index":0,"n_rows":45,"n_cols":27,"rows_kept":45,"cut":false,"hidden":false,"merged":[]}
[]
[null,null,null,null,null,null,null,null,null,null,null,null,null,null,null,null,null,{"$f":"TODAY()","v":"2017-12-04"}]
[]
["Titre","Personne","Info","Profil","2017-01-01","2017-02-01","2017-03-01","2017-04-01","2017-05-01","2017-06-01","2017-07-01","2017-08-01","2017-09-01","2017-10-01","2017-11-01","2017-12-01","2018-01-01","2018-02-01","2018-03-01","2018-04-01","2018-05-01","2018-06-01","Nbre 6 mois","DERNIERE RDV",null,"RDV A PROGRAMMER","Dates trouvées"]
["M.","M1",null,"Journée Normale",null,null,null,null,null,null,null,null,null,null,null,null,null,null,null,null,null,null,{"$f":"COUNTA(J5:O5)","v":0},{"$f":"IFERROR(LOOKUP(9^9,E5:V5),\"\")","v":""},{"$f":"X5+182","v":{"$error":"#VALUE!"}},{"$f":"IFERROR(IF(Y5<TODAY(),\"RDV A PROGRAMMER\",\"\"),\"\")","v":""}]
["M.","M2",null,"Journée Normale",null,null,null,"2017-04-25",null,null,null,null,null,null,null,null,null,null,null,null,null,null,{"$f":"COUNTA(J6:O6)","v":0},{"$f":"IFERROR(LOOKUP(9^9,E6:V6),\"\")","v":"2017-04-25"},{"$f":"X6+182","v":"2017-10-24"},{"$f":"IFERROR(IF(Y6<TODAY(),\"RDV A PROGRAMMER\",\"\"),\"\")","v":"RDV A PROGRAMMER"},"2018-01-16"]
["M.","M3",null,"Journée Normale",null,null,null,null,null,null,null,null,null,null,"2017-11-11",null,null,null,null,null,null,null,1,"2017-11-11",{"$f":"X7+182","v":"2018-05-12"},{"$f":"IFERROR(IF(Y7<TODAY(),\"RDV A PROGRAMMER\",\"\"),\"\")","v":""}]
["Mlle","M4",null,"Après Midi",null,null,null,null,null,"2017-07-04",null,"2017-07-30",null,null,null,null,null,null,null,null,null,null,2,"2017-07-30","2018-01-28",""]
["Mme","M5",null,"Journée Normale",null,"2017-02-22",null,null,null,null,null,null,null,null,null,null,null,null,null,null,null,null,0,"2017-02-22","2017-08-23","RDV A PROGRAMMER","2018-03-06"]
["Mme","M6","Absent","Matin",null,null,null,null,null,"2017-06-27",null,null,null,"2017-10-12",null,null,null,null,null,null,null,null,2,"2017-10-12","2018-04-12",""]
["M.","M7",null,"Journée Normale",null,null,null,null,null,null,null,null,null,null,null,null,null,null,null,null,null,null,0,"",{"$error":"#VALUE!"},""]
["Mme","M8","Absent","Matin",null,null,null,null,null,null,null,null,null,null,null,null,null,null,null,null,null,null,0,"",{"$error":"#VALUE!"},""]
["Mme","M9",null,"Matin",null,"2017-02-24",null,null,null,null,null,null,null,null,null,null,null,null,null,null,null,null,0,"2017-02-24","2017-08-25","RDV A PROGRAMMER","2018-06-14"]
["M.","M10",null,"Nuit",null,null,null,null,null,null,"2017-07-08",null,null,null,null,null,null,null,null,null,null,null,1,"2017-07-08","2018-01-06",""]
["Mme","M11",null,"Matin",null,"2017-02-25",null,null,null,null,null,null,null,"2017-10-13",null,null,null,null,null,null,null,null,1,"2017-10-13","2018-04-13",""]
["M.","M12",null,"Nuit",null,null,null,null,null,null,null,null,null,null,null,null,null,null,null,null,null,null,0,"",{"$error":"#VALUE!"},""]
["Mme","M13",null,"Matin",null,"2017-02-26",null,null,"2017-05-05",null,null,null,null,null,null,null,null,null,null,null,null,null,0,"2017-05-05","2017-11-03","RDV A PROGRAMMER","2018-06-19"]
["M.","M14",null,"Nuit",null,null,null,null,null,null,null,null,null,null,null,null,null,null,null,null,null,null,0,"",{"$error":"#VALUE!"},""]
["Mme","M15",null,"Matin",null,"2017-02-27",null,null,null,null,null,"2017-08-10",null,null,null,null,null,null,null,null,null,null,1,"2017-08-10","2018-02-08",""]
["M.","M16",null,"Nuit",null,null,null,null,null,null,null,null,null,null,null,null,null,null,null,null,null,null,0,"",{"$error":"#VALUE!"},""]
["Mme","M17",null,"Matin",null,"2017-02-28",null,null,null,null,null,null,null,null,null,null,null,null,null,null,null,null,0,"2017-02-28","2017-08-29","RDV A PROGRAMMER","2018-06-02"]
["M.","M18",null,"Nuit",null,null,null,null,null,null,"2017-07-08",null,null,null,"2017-11-08",null,null,null,null,null,null,null,2,"2017-11-08","2018-05-09",""]
["Mme","M19",null,"Matin",null,null,null,null,"2017-05-05",null,null,null,null,null,null,null,null,null,null,null,null,null,0,"2017-05-05","2017-11-03","RDV A PROGRAMMER","2018-06-02"]
["M.","M20",null,"Nuit",null,null,null,null,"2017-05-05",null,null,null,null,null,null,null,null,null,null,null,null,null,0,"2017-05-05","2017-11-03","RDV A PROGRAMMER","2017-12-15"]
["Mme","M21",null,"Matin",null,null,null,null,null,null,null,null,"2017-11-09",null,null,null,null,null,null,null,null,null,1,"2017-11-09","2018-05-10",""]
["M.","M22",null,"Nuit",null,null,"2017-03-03",null,null,null,null,null,null,null,null,null,null,null,null,null,null,null,0,"2017-03-03","2017-09-01","RDV A PROGRAMMER","2018-01-16"]
["Mme","M23",null,"Matin",null,null,null,null,null,null,null,null,null,null,null,null,null,null,null,null,null,null,0,"",{"$error":"#VALUE!"},""]
["M.","M24",null,"Nuit",null,null,null,"2017-04-04",null,null,null,null,null,null,null,null,null,null,null,null,null,null,0,"2017-04-04","2017-10-03","RDV A PROGRAMMER","2018-03-06"]
["Mme","M25",null,"Matin",null,null,null,null,"2017-05-05",null,null,null,null,null,null,null,null,null,null,null,null,null,0,"2017-05-05","2017-11-03","RDV A PROGRAMMER","2018-06-06"]
["M.","M26",null,"Nuit",null,null,"2017-03-03",null,null,null,null,null,null,null,null,null,null,null,null,null,null,null,0,"2017-03-03","2017-09-01","RDV A PROGRAMMER","2018-06-19"]
["Mme","M27",null,"Matin",null,null,null,null,"2017-05-17",null,null,null,null,null,null,null,null,null,null,null,null,null,0,"2017-05-17","2017-11-15","RDV A PROGRAMMER","2018-01-15"]
["M.","M28",null,"Nuit",null,null,null,"2017-04-17",null,null,null,null,null,null,null,null,null,null,null,null,null,null,0,"2017-04-17","2017-10-16","RDV A PROGRAMMER","2018-04-26"]
["Mme","M29",null,"Matin",null,null,null,null,"2017-05-21",null,null,null,null,null,null,null,null,null,null,null,null,null,{"$f":"COUNTA(J33:O33)","v":0},"2017-05-21","2017-11-19","RDV A PROGRAMMER","2018-04-09"]
["M.","M30",null,"Nuit",null,null,null,"2017-04-22",null,null,null,null,null,null,null,null,null,null,null,null,null,null,0,"2017-04-22","2017-10-21","RDV A PROGRAMMER","2018-04-02"]
["Mme","M31",null,"Matin",null,null,"2017-03-03",null,null,null,null,null,null,null,null,null,null,null,null,null,null,null,0,"2017-03-03","2017-09-01","RDV A PROGRAMMER","2018-02-17"]
["M.","M32",null,"Nuit",null,null,null,"2017-04-04",null,null,null,null,null,null,null,null,null,null,null,null,null,null,0,"2017-04-04","2017-10-03","RDV A PROGRAMMER","2017-12-11"]
["Mme","M33",null,"Matin",null,null,null,null,"2017-05-05",null,null,null,null,null,null,null,null,null,null,null,null,null,0,"2017-05-05","2017-11-03","RDV A PROGRAMMER","2018-06-06"]
["M.","M34",null,"Nuit",null,null,"2017-03-03",null,null,null,null,null,null,null,null,null,null,null,null,null,null,null,0,"2017-03-03","2017-09-01","RDV A PROGRAMMER","2017-12-15"]
["Mme","M35",null,"Matin",null,null,null,null,"2017-05-17",null,null,null,null,null,null,null,null,null,null,null,null,null,0,"2017-05-17","2017-11-15","RDV A PROGRAMMER","2017-12-11"]
["M.","M36",null,"Nuit",null,null,null,"2017-04-17",null,null,null,null,null,null,null,null,null,null,null,null,null,null,0,"2017-04-17","2017-10-16","RDV A PROGRAMMER","2018-04-26"]
["Mme","M37",null,"Matin",null,null,null,null,"2017-05-21",null,null,null,null,null,null,null,null,null,null,null,null,null,0,"2017-05-21","2017-11-19","RDV A PROGRAMMER","2018-01-15"]
["M.","M38",null,"Nuit",null,null,null,"2017-04-22",null,null,null,null,null,null,null,null,null,null,null,null,null,null,0,"2017-04-22","2017-10-21","RDV A PROGRAMMER","2018-04-02"]
["Mme","M39",null,"Matin",null,"2017-02-28",null,null,null,null,null,null,null,null,null,null,null,null,null,null,null,null,0,"2017-02-28","2017-08-29","RDV A PROGRAMMER","2018-06-14"]
["M.","M40",null,"Nuit",null,"2017-02-28",null,null,null,null,null,null,null,null,null,null,null,null,null,null,null,null,0,"2017-02-28","2017-08-29","RDV A PROGRAMMER","2018-02-17"]
["Mme","M41",null,"Matin",null,null,"2017-03-03",null,null,null,null,null,null,null,null,null,null,null,null,null,null,null,0,"2017-03-03","2017-09-01","RDV A PROGRAMMER","2018-04-09"]

{"sheet":"RDV","index":1,"n_rows":12,"n_cols":4,"rows_kept":12,"cut":false,"hidden":false,"merged":[]}
[]
["Titulaire","Second","Personne 1","Personne 2"]
["V1","P1"]
["V2","P2"]
["V3","P3"]
["V4","P4"]
["V5","P5"]
["V6","P6"]
["V7","P7"]
["V8","P8"]
["V9","P9"]
["V10","P10"]